[Event "Titled Tuesday Blitz May 25 2021"]
[White "Haitin, Ilja"]
[Black "Dobrov, Vladimir"]
[WhiteFideId "4501764"]
[BlackFideId "4136594"]
[WhiteElo "2182"]
[BlackElo "2614"]
[Result "0-1"]
[Round "01"]
[TimeControl "180+1"]
[Date "2021.05.25"]
[WhiteClock "0:00:04"]
[BlackClock "0:00:37"]

1. e4 {[%clk 0:03:00]}  c5 {[%clk 0:02:57]} 2. d3 {[%clk 0:02:59]}  Nc6 {[%clk 0:02:57]} 3. g3 {[%clk 0:02:58]}  g6 {[%clk 0:02:56]} 4. Bg2 {[%clk 0:02:58]}  Bg7 {[%clk 0:02:56]} 5. f4 {[%clk 0:02:58]}  d6 {[%clk 0:02:55]} 6. Nf3 {[%clk 0:02:58]}  e6 {[%clk 0:02:55]} 7. O-O {[%clk 0:02:58]}  Nge7 {[%clk 0:02:56]} 8. c3 {[%clk 0:02:59]}  O-O {[%clk 0:02:50]} 9. Be3 {[%clk 0:02:59]}  b6 {[%clk 0:02:44]} 10. Bf2 {[%clk 0:02:57]}  Ba6 {[%clk 0:02:40]} 11. Re1 {[%clk 0:02:49]}  d5 {[%clk 0:02:04]} 12. e5 {[%clk 0:02:48]}  d4 {[%clk 0:02:05]} 13. c4 {[%clk 0:02:41]}  Nf5 {[%clk 0:01:58]} 14. Ng5 {[%clk 0:02:20]}  Bb7 {[%clk 0:01:55]} 15. Ne4 {[%clk 0:02:20]}  Qe7 {[%clk 0:01:43]} 16. Nbd2 {[%clk 0:02:14]}  Rad8 {[%clk 0:01:39]} 17. Nf3 {[%clk 0:02:11]}  Qc7 {[%clk 0:01:23]} 18. g4 {[%clk 0:02:10]}  Ne3 {[%clk 0:01:24]} 19. Bxe3 {[%clk 0:02:09]}  dxe3 {[%clk 0:01:24]} 20. Rxe3 {[%clk 0:02:10]}  Rd7 {[%clk 0:01:15]} 21. Qe2 {[%clk 0:01:58]}  Rfd8 {[%clk 0:01:14]} 22. Rd1 {[%clk 0:01:58]}  Nd4 {[%clk 0:01:06]} 23. Nxd4 {[%clk 0:01:51]}  Rxd4 {[%clk 0:01:07]} 24. g5 {[%clk 0:01:49]}  b5 {[%clk 0:01:05]} 25. b3 {[%clk 0:01:41]}  bxc4 {[%clk 0:01:02]} 26. bxc4 {[%clk 0:01:39]}  Qa5 {[%clk 0:00:53]} 27. Nf6+ {[%clk 0:01:35]}  Bxf6 {[%clk 0:00:53]} 28. exf6 {[%clk 0:01:27]}  Bxg2 {[%clk 0:00:52]} 29. Kxg2 {[%clk 0:01:28]}  Rxf4 {[%clk 0:00:52]} 30. Rf1 {[%clk 0:01:06]}  Qc7 {[%clk 0:00:49]} 31. Re5 {[%clk 0:00:42]}  Rfd4 {[%clk 0:00:48]} 32. Rxe6 {[%clk 0:00:31]}  fxe6 {[%clk 0:00:46]} 33. Qxe6+ {[%clk 0:00:32]}  Qf7 {[%clk 0:00:46]} 34. Qe5 {[%clk 0:00:29]}  Rxd3 {[%clk 0:00:46]} 35. Qxc5 {[%clk 0:00:20]}  Qb7+ {[%clk 0:00:45]} 36. Kg1 {[%clk 0:00:19]}  Qb6 {[%clk 0:00:41]} 37. f7+ {[%clk 0:00:06]}  Kg7 {[%clk 0:00:40]} 38. Qxb6 {[%clk 0:00:03]}  axb6 {[%clk 0:00:40]} 39. Rf6 {[%clk 0:00:04]}  Rf8 {[%clk 0:00:37]} 0-1


[Site "https://www.chess.com"]

[Event "Titled Tuesday Blitz May 25 2021"]
[White "Harutjunyan, Gevorg"]
[Black "Todorovic, Bojan"]
[WhiteFideId "13300873"]
[BlackFideId "917087"]
[WhiteElo "2498"]
[BlackElo "2266"]
[Result "1-0"]
[Round "01"]
[TimeControl "180+1"]
[Date "2021.05.25"]
[WhiteClock "0:00:11"]
[BlackClock "0:00:11"]

1. e4 {[%clk 0:03:00]}  g6 {[%clk 0:02:58]} 2. d4 {[%clk 0:03:00]}  Bg7 {[%clk 0:02:57]} 3. Nc3 {[%clk 0:03:01]}  d6 {[%clk 0:02:57]} 4. f4 {[%clk 0:03:01]}  a6 {[%clk 0:02:55]} 5. Nf3 {[%clk 0:02:58]}  b5 {[%clk 0:02:51]} 6. Bd3 {[%clk 0:02:57]}  Bb7 {[%clk 0:02:50]} 7. Qe2 {[%clk 0:02:56]}  Nd7 {[%clk 0:02:49]} 8. e5 {[%clk 0:02:56]}  c5 {[%clk 0:02:25]} 9. Be4 {[%clk 0:02:54]}  Bxe4 {[%clk 0:02:18]} 10. Nxe4 {[%clk 0:02:55]}  cxd4 {[%clk 0:02:16]} 11. exd6 {[%clk 0:02:47]}  Ngf6 {[%clk 0:01:58]} 12. Neg5 {[%clk 0:02:47]}  h6 {[%clk 0:01:38]} 13. Nxd4 {[%clk 0:02:40]}  Nc5 {[%clk 0:01:24]} 14. Ngf3 {[%clk 0:01:32]}  Qxd6 {[%clk 0:01:23]} 15. Be3 {[%clk 0:01:28]}  O-O {[%clk 0:01:14]} 16. O-O-O {[%clk 0:01:28]}  Qc7 {[%clk 0:01:13]} 17. Ne5 {[%clk 0:01:20]}  Nd5 {[%clk 0:01:06]} 18. Ndc6 {[%clk 0:01:18]}  Nxe3 {[%clk 0:00:59]} 19. Qxe3 {[%clk 0:01:18]}  Na4 {[%clk 0:00:53]} 20. Rd7 {[%clk 0:01:15]}  Qb6 {[%clk 0:00:48]} 21. Nxe7+ {[%clk 0:01:14]}  Kh7 {[%clk 0:00:47]} 22. Qxb6 {[%clk 0:01:10]}  Nxb6 {[%clk 0:00:47]} 23. Rb7 {[%clk 0:01:10]}  Nc4 {[%clk 0:00:44]} 24. Nxc4 {[%clk 0:01:04]}  bxc4 {[%clk 0:00:44]} 25. Rd1 {[%clk 0:01:04]}  Rfd8 {[%clk 0:00:37]} 26. Rbd7 {[%clk 0:01:00]}  Rxd7 {[%clk 0:00:37]} 27. Rxd7 {[%clk 0:01:01]}  Rb8 {[%clk 0:00:38]} 28. c3 {[%clk 0:01:01]}  Rb5 {[%clk 0:00:33]} 29. g4 {[%clk 0:00:51]}  g5 {[%clk 0:00:25]} 30. f5 {[%clk 0:00:47]}  Be5 {[%clk 0:00:25]} 31. Nc6 {[%clk 0:00:43]}  Bf4+ {[%clk 0:00:25]} 32. Kc2 {[%clk 0:00:41]}  Kg7 {[%clk 0:00:24]} 33. Nd4 {[%clk 0:00:41]}  Re5 {[%clk 0:00:23]} 34. b3 {[%clk 0:00:31]}  cxb3+ {[%clk 0:00:20]} 35. axb3 {[%clk 0:00:31]}  Re3 {[%clk 0:00:20]} 36. Ne6+ {[%clk 0:00:28]}  Kf6 {[%clk 0:00:20]} 37. Nd8 {[%clk 0:00:29]}  Re2+ {[%clk 0:00:17]} 38. Kd1 {[%clk 0:00:29]}  Rxh2 {[%clk 0:00:16]} 39. Rxf7+ {[%clk 0:00:27]}  Ke5 {[%clk 0:00:17]} 40. Re7+ {[%clk 0:00:25]}  Kd5 {[%clk 0:00:17]} 41. Nf7 {[%clk 0:00:20]}  Rd2+ {[%clk 0:00:16]} 42. Ke1 {[%clk 0:00:20]}  Rc2 {[%clk 0:00:16]} 43. c4+ {[%clk 0:00:16]}  Kc5 {[%clk 0:00:16]} 44. f6 {[%clk 0:00:15]}  Kb4 {[%clk 0:00:14]} 45. Nxh6 {[%clk 0:00:12]}  Kxb3 {[%clk 0:00:13]} 46. f7 {[%clk 0:00:12]}  Bg3+ {[%clk 0:00:11]} 47. Kd1 {[%clk 0:00:11]}  Rf2 {[%clk 0:00:11]} 48. Nf5 {[%clk 0:00:11]} 1-0


[Site "https://www.chess.com"]

[Event "Titled Tuesday Blitz May 25 2021"]
[White "Juhasz, Agoston"]
[Black "Wieczorek, Oskar"]
[WhiteFideId "778346"]
[BlackFideId "1133950"]
[WhiteElo "2211"]
[BlackElo "2258"]
[Result "0-1"]
[Round "01"]
[TimeControl "180+1"]
[Date "2021.05.25"]
[WhiteClock "0:00:04"]
[BlackClock "0:00:02"]

1. e4 {[%clk 0:02:59]}  e6 {[%clk 0:02:57]} 2. d4 {[%clk 0:02:55]}  d5 {[%clk 0:02:57]} 3. Bd3 {[%clk 0:02:50]}  Nf6 {[%clk 0:02:53]} 4. e5 {[%clk 0:02:49]}  Nfd7 {[%clk 0:02:53]} 5. c3 {[%clk 0:02:50]}  c5 {[%clk 0:02:53]} 6. Nf3 {[%clk 0:02:50]}  Nc6 {[%clk 0:02:54]} 7. O-O {[%clk 0:02:48]}  Be7 {[%clk 0:02:54]} 8. a3 {[%clk 0:02:47]}  a5 {[%clk 0:02:47]} 9. Re1 {[%clk 0:02:37]}  g5 {[%clk 0:02:36]} 10. dxc5 {[%clk 0:02:13]}  g4 {[%clk 0:01:42]} 11. Nd4 {[%clk 0:02:10]}  Ncxe5 {[%clk 0:01:30]} 12. Bb5 {[%clk 0:02:04]}  Bf6 {[%clk 0:01:17]} 13. Bf4 {[%clk 0:01:52]}  O-O {[%clk 0:01:05]} 14. c6 {[%clk 0:01:06]}  bxc6 {[%clk 0:00:55]} 15. Nxc6 {[%clk 0:01:05]}  Nxc6 {[%clk 0:00:51]} 16. Bxc6 {[%clk 0:01:05]}  Ra6 {[%clk 0:00:51]} 17. Qxg4+ {[%clk 0:00:59]}  Kh8 {[%clk 0:00:51]} 18. Bb5 {[%clk 0:00:56]}  Rb6 {[%clk 0:00:48]} 19. a4 {[%clk 0:00:45]}  e5 {[%clk 0:00:34]} 20. Be3 {[%clk 0:00:43]}  Rd6 {[%clk 0:00:28]} 21. Qh5 {[%clk 0:00:36]}  Bg7 {[%clk 0:00:24]} 22. Na3 {[%clk 0:00:30]}  Rg6 {[%clk 0:00:24]} 23. Rad1 {[%clk 0:00:28]}  d4 {[%clk 0:00:21]} 24. cxd4 {[%clk 0:00:26]}  Bb7 {[%clk 0:00:21]} 25. d5 {[%clk 0:00:24]}  Nf6 {[%clk 0:00:20]} 26. Qh4 {[%clk 0:00:20]}  Nxd5 {[%clk 0:00:10]} 27. Qxd8 {[%clk 0:00:20]}  Rxd8 {[%clk 0:00:11]} 28. Kh1 {[%clk 0:00:17]}  Rc8 {[%clk 0:00:07]} 29. f3 {[%clk 0:00:12]}  Nxe3 {[%clk 0:00:06]} 30. Rxe3 {[%clk 0:00:13]}  h5 {[%clk 0:00:06]} 31. Red3 {[%clk 0:00:13]}  e4 {[%clk 0:00:03]} 32. Rd7 {[%clk 0:00:06]}  exf3 {[%clk 0:00:02]} 33. Rxb7 {[%clk 0:00:04]}  fxg2+ {[%clk 0:00:02]} 34. Kg1 {[%clk 0:00:04]}  Bd4+ {[%clk 0:00:02]} 0-1


[Site "https://www.chess.com"]

[Event "Titled Tuesday Blitz May 25 2021"]
[White "Kakabayev, Mergen"]
[Black "Urazayev, Arystanbek"]
[WhiteFideId "14002990"]
[BlackFideId "13709810"]
[WhiteElo "2302"]
[BlackElo "2321"]
[Result "0-1"]
[Round "01"]
[TimeControl "180+1"]
[Date "2021.05.25"]
[WhiteClock "0:00:06"]
[BlackClock "0:01:07"]

1. e4 {[%clk 0:02:59]}  c5 {[%clk 0:02:58]} 2. Nf3 {[%clk 0:02:58]}  d6 {[%clk 0:02:58]} 3. d4 {[%clk 0:02:57]}  cxd4 {[%clk 0:02:59]} 4. Nxd4 {[%clk 0:02:58]}  Nf6 {[%clk 0:03:00]} 5. Nc3 {[%clk 0:02:58]}  a6 {[%clk 0:03:00]} 6. Bg5 {[%clk 0:02:58]}  Nbd7 {[%clk 0:02:59]} 7. Qe2 {[%clk 0:02:57]}  h6 {[%clk 0:02:58]} 8. Bh4 {[%clk 0:02:56]}  g5 {[%clk 0:02:50]} 9. Bg3 {[%clk 0:02:55]}  Bg7 {[%clk 0:02:51]} 10. Nf5 {[%clk 0:02:51]}  Bf8 {[%clk 0:02:44]} 11. h4 {[%clk 0:02:44]}  g4 {[%clk 0:02:43]} 12. O-O-O {[%clk 0:02:40]}  Nc5 {[%clk 0:02:35]} 13. e5 {[%clk 0:01:48]}  Bxf5 {[%clk 0:02:33]} 14. exf6 {[%clk 0:01:47]}  e6 {[%clk 0:02:34]} 15. h5 {[%clk 0:01:28]}  Rc8 {[%clk 0:02:27]} 16. Kb1 {[%clk 0:01:25]}  Qxf6 {[%clk 0:02:16]} 17. Bxd6 {[%clk 0:01:23]}  Bxd6 {[%clk 0:02:17]} 18. Rxd6 {[%clk 0:01:24]}  O-O {[%clk 0:02:15]} 19. Qe3 {[%clk 0:01:21]}  Na4 {[%clk 0:02:06]} 20. Nxa4 {[%clk 0:01:16]}  Bxc2+ {[%clk 0:02:05]} 21. Ka1 {[%clk 0:01:16]}  Bxa4 {[%clk 0:02:05]} 22. Bd3 {[%clk 0:01:13]}  Rfd8 {[%clk 0:01:50]} 23. Rxd8+ {[%clk 0:01:06]}  Rxd8 {[%clk 0:01:51]} 24. Rc1 {[%clk 0:00:59]}  Bc6 {[%clk 0:01:47]} 25. Bb1 {[%clk 0:00:50]}  Bxg2 {[%clk 0:01:34]} 26. Rc4 {[%clk 0:00:38]}  Bf3 {[%clk 0:01:31]} 27. Rf4 {[%clk 0:00:37]}  Qg5 {[%clk 0:01:30]} 28. Qc1 {[%clk 0:00:31]}  e5 {[%clk 0:01:15]} 29. Rc4 {[%clk 0:00:06]}  Qxc1 {[%clk 0:01:13]} 30. Rxc1 {[%clk 0:00:07]}  Rd1 {[%clk 0:01:12]} 31. Rxd1 {[%clk 0:00:06]}  Bxd1 {[%clk 0:01:13]} 32. Bf5 {[%clk 0:00:06]}  b6 {[%clk 0:01:09]} 33. Kb1 {[%clk 0:00:06]}  Kg7 {[%clk 0:01:08]} 34. Kc1 {[%clk 0:00:06]}  Bf3 {[%clk 0:01:09]} 35. Kd2 {[%clk 0:00:06]}  Kf6 {[%clk 0:01:09]} 36. Bd7 {[%clk 0:00:06]}  Kg5 {[%clk 0:01:07]} 37. Be8 {[%clk 0:00:06]}  Bd5 {[%clk 0:01:07]} 38. Ke3 {[%clk 0:00:06]} 0-1


[Site "https://www.chess.com"]

[Event "Titled Tuesday Blitz May 25 2021"]
[White "Kazakouski, Valery"]
[Black "Petukhov, Dmitry"]
[WhiteFideId "13507443"]
[BlackFideId "4142748"]
[WhiteElo "2546"]
[BlackElo "2356"]
[Result "1-0"]
[Round "01"]
[TimeControl "180+1"]
[Date "2021.05.25"]
[WhiteClock "0:01:40"]
[BlackClock "0:00:15"]

1. d4 {[%clk 0:03:00]}  Nf6 {[%clk 0:02:31]} 2. Nf3 {[%clk 0:02:58]}  g6 {[%clk 0:02:30]} 3. c4 {[%clk 0:02:55]}  Bg7 {[%clk 0:02:30]} 4. g3 {[%clk 0:02:55]}  O-O {[%clk 0:02:29]} 5. Bg2 {[%clk 0:02:56]}  c6 {[%clk 0:02:29]} 6. O-O {[%clk 0:02:56]}  d5 {[%clk 0:02:30]} 7. Nbd2 {[%clk 0:02:56]}  Ne4 {[%clk 0:02:29]} 8. b3 {[%clk 0:02:56]}  Nxd2 {[%clk 0:02:26]} 9. Qxd2 {[%clk 0:02:54]}  Bf5 {[%clk 0:02:23]} 10. Bb2 {[%clk 0:02:49]}  Be4 {[%clk 0:02:23]} 11. Bh3 {[%clk 0:02:49]}  e6 {[%clk 0:02:17]} 12. Ne5 {[%clk 0:02:39]}  dxc4 {[%clk 0:02:01]} 13. Nxc4 {[%clk 0:02:39]}  c5 {[%clk 0:01:57]} 14. Rfd1 {[%clk 0:02:33]}  Nc6 {[%clk 0:01:55]} 15. dxc5 {[%clk 0:02:32]}  Qxd2 {[%clk 0:01:51]} 16. Rxd2 {[%clk 0:02:33]}  Rfd8 {[%clk 0:01:46]} 17. Bxg7 {[%clk 0:02:30]}  Kxg7 {[%clk 0:01:45]} 18. Nd6 {[%clk 0:02:28]}  Bd5 {[%clk 0:01:15]} 19. Nxb7 {[%clk 0:02:19]}  Rd7 {[%clk 0:01:09]} 20. Nd6 {[%clk 0:02:18]}  Ne7 {[%clk 0:01:04]} 21. Rad1 {[%clk 0:02:16]}  Rc7 {[%clk 0:01:01]} 22. e4 {[%clk 0:02:08]}  Bc6 {[%clk 0:00:56]} 23. b4 {[%clk 0:02:00]}  Rb8 {[%clk 0:00:54]} 24. a3 {[%clk 0:01:59]}  a5 {[%clk 0:00:52]} 25. b5 {[%clk 0:01:53]}  Bxb5 {[%clk 0:00:50]} 26. Rb1 {[%clk 0:01:53]}  Rxc5 {[%clk 0:00:38]} 27. Rdb2 {[%clk 0:01:53]}  Rc3 {[%clk 0:00:15]} 28. Nxb5 {[%clk 0:01:49]}  Rd3 {[%clk 0:00:15]} 29. Bf1 {[%clk 0:01:49]}  Rdd8 {[%clk 0:00:13]} 30. Rc2 {[%clk 0:01:41]}  Nc6 {[%clk 0:00:14]} 31. Rxc6 {[%clk 0:01:41]}  f5 {[%clk 0:00:15]} 32. Rxe6 {[%clk 0:01:40]} 1-0


[Site "https://www.chess.com"]

[Event "Titled Tuesday Blitz May 25 2021"]
[White "Koridze, Lile"]
[Black "Djordjevic, Vuk"]
[WhiteFideId "13612514"]
[BlackFideId "902098"]
[WhiteElo "1978"]
[BlackElo "2463"]
[Result "0-1"]
[Round "01"]
[TimeControl "180+1"]
[Date "2021.05.25"]
[WhiteClock "0:01:01"]
[BlackClock "0:00:05"]

1. d4 {[%clk 0:03:00]}  Nf6 {[%clk 0:02:59]} 2. c4 {[%clk 0:02:57]}  e6 {[%clk 0:03:00]} 3. Nf3 {[%clk 0:02:55]}  b6 {[%clk 0:03:00]} 4. g3 {[%clk 0:02:55]}  Ba6 {[%clk 0:03:00]} 5. Nbd2 {[%clk 0:02:50]}  Bb4 {[%clk 0:02:59]} 6. b3 {[%clk 0:02:49]}  Bc3 {[%clk 0:02:45]} 7. Rb1 {[%clk 0:02:48]}  Bb7 {[%clk 0:02:45]} 8. Qc2 {[%clk 0:02:44]}  Bxd4 {[%clk 0:02:40]} 9. Nxd4 {[%clk 0:02:38]}  Bxh1 {[%clk 0:02:39]} 10. f3 {[%clk 0:02:38]}  h5 {[%clk 0:02:20]} 11. h4 {[%clk 0:02:30]}  a6 {[%clk 0:01:28]} 12. b4 {[%clk 0:02:25]}  c5 {[%clk 0:01:24]} 13. bxc5 {[%clk 0:02:26]}  bxc5 {[%clk 0:01:25]} 14. N4b3 {[%clk 0:02:26]}  Qc7 {[%clk 0:01:26]} 15. Kf2 {[%clk 0:02:24]}  Nc6 {[%clk 0:01:25]} 16. Bb2 {[%clk 0:02:13]}  Nb4 {[%clk 0:01:20]} 17. Qd1 {[%clk 0:02:08]}  Ng4+ {[%clk 0:00:55]} 18. fxg4 {[%clk 0:02:04]}  hxg4 {[%clk 0:00:56]} 19. Bg2 {[%clk 0:02:02]}  Bxg2 {[%clk 0:00:50]} 20. Kxg2 {[%clk 0:02:03]}  O-O {[%clk 0:00:42]} 21. e4 {[%clk 0:02:02]}  f5 {[%clk 0:00:42]} 22. Qe2 {[%clk 0:01:59]}  Rae8 {[%clk 0:00:30]} 23. e5 {[%clk 0:01:58]}  Qc6+ {[%clk 0:00:28]} 24. Kh2 {[%clk 0:01:58]}  Nxa2 {[%clk 0:00:27]} 25. Nf1 {[%clk 0:01:48]}  Nb4 {[%clk 0:00:24]} 26. Ne3 {[%clk 0:01:44]}  Qe4 {[%clk 0:00:23]} 27. Re1 {[%clk 0:01:39]}  f4 {[%clk 0:00:17]} 28. Qxg4 {[%clk 0:01:23]}  Nd3 {[%clk 0:00:15]} 29. Re2 {[%clk 0:01:12]}  Nxb2 {[%clk 0:00:15]} 30. Ng2 {[%clk 0:01:13]}  fxg3+ {[%clk 0:00:08]} 31. Kxg3 {[%clk 0:01:11]}  Qxg4+ {[%clk 0:00:08]} 32. Kxg4 {[%clk 0:01:11]}  Nxc4 {[%clk 0:00:08]} 33. Nxc5 {[%clk 0:01:11]}  Rf7 {[%clk 0:00:08]} 34. Rc2 {[%clk 0:01:08]}  Nxe5+ {[%clk 0:00:08]} 35. Kg3 {[%clk 0:01:08]}  a5 {[%clk 0:00:08]} 36. Ne4 {[%clk 0:01:07]}  Rf3+ {[%clk 0:00:07]} 37. Kh2 {[%clk 0:01:07]}  Ng4+ {[%clk 0:00:07]} 38. Kg1 {[%clk 0:01:08]}  Ref8 {[%clk 0:00:07]} 39. Nd2 {[%clk 0:01:08]}  Rd3 {[%clk 0:00:07]} 40. Ra2 {[%clk 0:01:07]}  a4 {[%clk 0:00:06]} 41. Ne1 {[%clk 0:01:04]}  Rg3+ {[%clk 0:00:05]} 42. Kh1 {[%clk 0:01:01]}  Rf2 {[%clk 0:00:05]} 0-1


[Site "https://www.chess.com"]

[Event "Titled Tuesday Blitz May 25 2021"]
[White "Le, Tuan Minh"]
[Black "Noboa Silva, Kevin"]
[WhiteFideId "12401153"]
[BlackFideId "3618471"]
[WhiteElo "2450"]
[BlackElo "2161"]
[Result "1-0"]
[Round "01"]
[TimeControl "180+1"]
[Date "2021.05.25"]
[WhiteClock "0:00:14"]
[BlackClock "0:00:05"]

1. d4 {[%clk 0:02:56]}  Nf6 {[%clk 0:02:59]} 2. Nf3 {[%clk 0:02:48]}  e6 {[%clk 0:02:59]} 3. Bf4 {[%clk 0:02:49]}  b6 {[%clk 0:02:57]} 4. e3 {[%clk 0:02:49]}  Bb7 {[%clk 0:02:57]} 5. Bd3 {[%clk 0:02:46]}  Be7 {[%clk 0:02:57]} 6. h3 {[%clk 0:02:45]}  d6 {[%clk 0:02:57]} 7. O-O {[%clk 0:02:45]}  a6 {[%clk 0:02:57]} 8. c4 {[%clk 0:02:44]}  c5 {[%clk 0:02:57]} 9. Nc3 {[%clk 0:02:44]}  cxd4 {[%clk 0:02:57]} 10. exd4 {[%clk 0:02:43]}  O-O {[%clk 0:02:57]} 11. Re1 {[%clk 0:02:42]}  Re8 {[%clk 0:02:55]} 12. Bg3 {[%clk 0:02:34]}  Nbd7 {[%clk 0:02:54]} 13. Qe2 {[%clk 0:02:30]}  Bf8 {[%clk 0:02:51]} 14. Rad1 {[%clk 0:02:31]}  Rc8 {[%clk 0:02:49]} 15. Bh4 {[%clk 0:02:24]}  Qc7 {[%clk 0:02:48]} 16. Bg3 {[%clk 0:02:22]}  Qb8 {[%clk 0:02:44]} 17. Nd2 {[%clk 0:02:21]}  Qa8 {[%clk 0:02:39]} 18. Qf1 {[%clk 0:02:05]}  d5 {[%clk 0:02:31]} 19. cxd5 {[%clk 0:02:05]}  Nxd5 {[%clk 0:02:30]} 20. Nxd5 {[%clk 0:02:03]}  Bxd5 {[%clk 0:02:23]} 21. Bxa6 {[%clk 0:01:47]}  Bxg2 {[%clk 0:02:19]} 22. Qxg2 {[%clk 0:01:34]}  Qxa6 {[%clk 0:02:17]} 23. a3 {[%clk 0:01:35]}  Qb5 {[%clk 0:02:01]} 24. b4 {[%clk 0:01:20]}  Nf6 {[%clk 0:01:36]} 25. Be5 {[%clk 0:01:17]}  Nd5 {[%clk 0:01:35]} 26. Ne4 {[%clk 0:01:17]}  Red8 {[%clk 0:01:03]} 27. Qf3 {[%clk 0:01:00]}  Rc2 {[%clk 0:00:55]} 28. Rd3 {[%clk 0:00:57]}  Rdc8 {[%clk 0:00:48]} 29. Qg3 {[%clk 0:00:54]}  Rc1 {[%clk 0:00:46]} 30. Rxc1 {[%clk 0:00:47]}  Rxc1+ {[%clk 0:00:47]} 31. Kh2 {[%clk 0:00:48]}  f5 {[%clk 0:00:36]} 32. Nc3 {[%clk 0:00:23]}  Qc6 {[%clk 0:00:24]} 33. Nxd5 {[%clk 0:00:16]}  Qxd5 {[%clk 0:00:24]} 34. Qg2 {[%clk 0:00:16]}  Qd7 {[%clk 0:00:19]} 35. Rg3 {[%clk 0:00:14]}  g6 {[%clk 0:00:18]} 36. h4 {[%clk 0:00:11]}  Kf7 {[%clk 0:00:15]} 37. h5 {[%clk 0:00:11]}  Bd6 {[%clk 0:00:10]} 38. hxg6+ {[%clk 0:00:11]}  hxg6 {[%clk 0:00:10]} 39. Rxg6 {[%clk 0:00:12]}  Bxe5+ {[%clk 0:00:10]} 40. dxe5 {[%clk 0:00:13]}  Qd4 {[%clk 0:00:05]} 41. Rg7+ {[%clk 0:00:13]}  Ke8 {[%clk 0:00:05]} 42. Qa8+ {[%clk 0:00:13]}  Qd8 {[%clk 0:00:05]} 43. Rg8+ {[%clk 0:00:13]}  Kf7 {[%clk 0:00:05]} 44. Qxd8 {[%clk 0:00:14]} 1-0


[Site "https://www.chess.com"]

[Event "Titled Tuesday Blitz May 25 2021"]
[White "Leitao, Rafael"]
[Black "Tarasova, Viktoriya"]
[WhiteFideId "2101246"]
[BlackFideId "4175840"]
[WhiteElo "2609"]
[BlackElo "2182"]
[Result "1-0"]
[Round "01"]
[TimeControl "180+1"]
[Date "2021.05.25"]
[WhiteClock "0:00:58"]
[BlackClock "0:00:12"]

1. c4 {[%clk 0:02:56]}  Nf6 {[%clk 0:02:59]} 2. Nc3 {[%clk 0:02:50]}  e5 {[%clk 0:02:59]} 3. Nf3 {[%clk 0:02:50]}  Nc6 {[%clk 0:02:58]} 4. e4 {[%clk 0:02:50]}  Bb4 {[%clk 0:02:57]} 5. d3 {[%clk 0:02:50]}  Bxc3+ {[%clk 0:02:56]} 6. bxc3 {[%clk 0:02:50]}  O-O {[%clk 0:02:57]} 7. g3 {[%clk 0:02:50]}  d6 {[%clk 0:02:57]} 8. Bg2 {[%clk 0:02:50]}  a6 {[%clk 0:02:53]} 9. a4 {[%clk 0:02:48]}  Ne7 {[%clk 0:02:47]} 10. O-O {[%clk 0:02:47]}  c6 {[%clk 0:02:47]} 11. Ba3 {[%clk 0:02:40]}  Qc7 {[%clk 0:02:45]} 12. Re1 {[%clk 0:02:37]}  Ng6 {[%clk 0:02:41]} 13. d4 {[%clk 0:02:24]}  Rd8 {[%clk 0:02:34]} 14. Qc2 {[%clk 0:02:17]}  Be6 {[%clk 0:02:22]} 15. c5 {[%clk 0:02:15]}  dxc5 {[%clk 0:02:14]} 16. Bxc5 {[%clk 0:02:15]}  Nd7 {[%clk 0:02:11]} 17. Ba3 {[%clk 0:02:13]}  Nb6 {[%clk 0:01:59]} 18. a5 {[%clk 0:02:13]}  Nc4 {[%clk 0:01:58]} 19. Bb4 {[%clk 0:02:13]}  Bg4 {[%clk 0:01:40]} 20. h3 {[%clk 0:01:50]}  Bxf3 {[%clk 0:01:38]} 21. Bxf3 {[%clk 0:01:50]}  exd4 {[%clk 0:01:28]} 22. cxd4 {[%clk 0:01:49]}  Rxd4 {[%clk 0:01:29]} 23. Be2 {[%clk 0:01:44]}  Nce5 {[%clk 0:01:14]} 24. Bc3 {[%clk 0:01:42]}  Rdd8 {[%clk 0:01:11]} 25. f4 {[%clk 0:01:42]}  Nd7 {[%clk 0:01:10]} 26. Bc4 {[%clk 0:01:41]}  b5 {[%clk 0:00:59]} 27. axb6 {[%clk 0:01:37]}  Qxb6+ {[%clk 0:00:52]} 28. Kg2 {[%clk 0:01:32]}  Qa7 {[%clk 0:00:22]} 29. Qa2 {[%clk 0:01:29]}  Nc5 {[%clk 0:00:19]} 30. e5 {[%clk 0:01:17]}  Re8 {[%clk 0:00:18]} 31. f5 {[%clk 0:01:17]}  Nf8 {[%clk 0:00:17]} 32. Bd4 {[%clk 0:01:14]}  Rad8 {[%clk 0:00:16]} 33. Bxc5 {[%clk 0:01:12]}  Qxc5 {[%clk 0:00:16]} 34. Bxf7+ {[%clk 0:01:12]}  Kh8 {[%clk 0:00:16]} 35. Bxe8 {[%clk 0:01:12]}  Rxe8 {[%clk 0:00:16]} 36. Rac1 {[%clk 0:01:12]}  Qd4 {[%clk 0:00:14]} 37. Rcd1 {[%clk 0:01:11]}  Qc3 {[%clk 0:00:14]} 38. e6 {[%clk 0:01:06]}  g6 {[%clk 0:00:14]} 39. Qd2 {[%clk 0:01:01]}  Qf6 {[%clk 0:00:13]} 40. Qd4 {[%clk 0:00:59]}  Qxd4 {[%clk 0:00:12]} 41. Rxd4 {[%clk 0:00:58]}  gxf5 {[%clk 0:00:13]} 42. e7 {[%clk 0:00:58]}  Ng6 {[%clk 0:00:12]} 43. Rd8 {[%clk 0:00:58]} 1-0


[Site "https://www.chess.com"]

[Event "Titled Tuesday Blitz May 25 2021"]
[White "Nayem, Haque"]
[Black "Indjic, Aleksandar"]
[WhiteFideId "10217754"]
[BlackFideId "911925"]
[WhiteElo "1982"]
[BlackElo "2643"]
[Result "0-1"]
[Round "01"]
[TimeControl "180+1"]
[Date "2021.05.25"]
[WhiteClock "0:01:26"]
[BlackClock "0:01:50"]

1. e4 {[%clk 0:02:59]}  c5 {[%clk 0:02:58]} 2. Nf3 {[%clk 0:02:59]}  e6 {[%clk 0:02:59]} 3. d4 {[%clk 0:02:59]}  cxd4 {[%clk 0:03:00]} 4. Nxd4 {[%clk 0:02:59]}  Nc6 {[%clk 0:03:01]} 5. Nc3 {[%clk 0:02:59]}  Nf6 {[%clk 0:03:01]} 6. Be3 {[%clk 0:02:59]}  Bb4 {[%clk 0:02:59]} 7. Bd3 {[%clk 0:02:57]}  d5 {[%clk 0:02:59]} 8. Nxc6 {[%clk 0:02:51]}  bxc6 {[%clk 0:02:58]} 9. exd5 {[%clk 0:02:49]}  cxd5 {[%clk 0:02:56]} 10. O-O {[%clk 0:02:47]}  O-O {[%clk 0:02:56]} 11. a3 {[%clk 0:02:44]}  Ba5 {[%clk 0:02:54]} 12. b4 {[%clk 0:02:43]}  Bb6 {[%clk 0:02:54]} 13. Ne2 {[%clk 0:02:40]}  Bxe3 {[%clk 0:02:52]} 14. fxe3 {[%clk 0:02:39]}  Qb6 {[%clk 0:02:53]} 15. Qd2 {[%clk 0:02:36]}  Bd7 {[%clk 0:02:52]} 16. Nd4 {[%clk 0:02:34]}  e5 {[%clk 0:02:47]} 17. Nb3 {[%clk 0:02:18]}  Be6 {[%clk 0:02:40]} 18. Nc5 {[%clk 0:02:17]}  Nd7 {[%clk 0:02:39]} 19. Nxd7 {[%clk 0:02:05]}  Bxd7 {[%clk 0:02:40]} 20. Kh1 {[%clk 0:02:06]}  Be6 {[%clk 0:02:38]} 21. Bf5 {[%clk 0:02:04]}  Rac8 {[%clk 0:02:35]} 22. Bxe6 {[%clk 0:02:02]}  Qxe6 {[%clk 0:02:36]} 23. Rad1 {[%clk 0:02:01]}  Rfd8 {[%clk 0:02:35]} 24. Rf2 {[%clk 0:01:59]}  h6 {[%clk 0:02:34]} 25. Rdf1 {[%clk 0:01:58]}  f6 {[%clk 0:02:34]} 26. h3 {[%clk 0:01:53]}  Rd7 {[%clk 0:02:30]} 27. Qd3 {[%clk 0:01:52]}  d4 {[%clk 0:02:29]} 28. exd4 {[%clk 0:01:51]}  Rxd4 {[%clk 0:02:30]} 29. Qg6 {[%clk 0:01:50]}  Qf7 {[%clk 0:02:27]} 30. Qf5 {[%clk 0:01:48]}  Rc7 {[%clk 0:02:23]} 31. c3 {[%clk 0:01:43]}  Rdd7 {[%clk 0:02:16]} 32. a4 {[%clk 0:01:42]}  Rxc3 {[%clk 0:02:14]} 33. b5 {[%clk 0:01:39]}  Rcd3 {[%clk 0:02:12]} 34. a5 {[%clk 0:01:37]}  Rd1 {[%clk 0:02:10]} 35. b6 {[%clk 0:01:34]}  axb6 {[%clk 0:02:00]} 36. axb6 {[%clk 0:01:34]}  Qb3 {[%clk 0:02:00]} 37. Rxd1 {[%clk 0:01:27]}  Rxd1+ {[%clk 0:01:58]} 38. Kh2 {[%clk 0:01:27]}  Qxb6 {[%clk 0:01:59]} 39. Qc8+ {[%clk 0:01:27]}  Rd8 {[%clk 0:01:51]} 40. Qe6+ {[%clk 0:01:26]}  Qxe6 {[%clk 0:01:50]} 0-1


[Site "https://www.chess.com"]